bitfinex-derivatives/quotes_BTCF0:USTF0_20251215
["timestamp","ask_amount","ask_price","bid_price","bid_amount"]
[1765841072365,0.43232292,86191.0,86190.0,0.07746399]
[1765841074358,0.43232292,86191.0,86190.0,0.15345399]
[1765841074868,0.43232292,86191.0,86190.0,0.07746399]
[1765841077164,0.43232292,86191.0,86190.0,0.14752399]
[1765841077364,0.43232292,86191.0,86190.0,0.07746399]
[1765841077659,0.43232292,86191.0,86190.0,0.14453399]
[1765841081260,8.942e-05,86191.0,86190.0,0.14453399]
[1765841081769,0.18943702,86200.0,86199.0,0.12221]
[1765841082063,0.0116019,86203.0,86201.0,0.0116021]
[1765841082271,0.0116019,86203.0,86202.0,0.11926]
[1765841083368,0.0126019,86203.0,86202.0,0.11926]
[1765841083672,0.4012519,86203.0,86202.0,0.11926]
[1765841084672,0.4002519,86203.0,86202.0,0.11926]
[1765841084871,0.4012519,86203.0,86202.0,0.11926]
[1765841085069,0.0126019,86203.0,86202.0,0.17454]
[1765841085271,0.11824,86220.0,86206.0,0.1221015]
[1765841085469,0.29607472,86220.0,86206.0,0.1221015]
[1765841085773,0.11824,86226.0,86225.0,0.1105]
[1765841087277,0.50689,86226.0,86225.0,0.1105]
[1765841100979,0.11824,86232.0,86231.0,0.0768781]
[1765841101180,0.00017399,86234.0,86233.0,0.06528]
[1765841102274,0.31871,86238.0,86237.0,0.0755573]
[1765841102680,0.11824,86238.0,86237.0,0.0755573]
[1765841102882,0.49484,86238.0,86237.0,0.0755573]
[1765841103290,0.2012671,86239.0,86238.0,0.36681]
[1765841103584,0.3881971,86239.0,86238.0,0.36681]
[1765841104489,0.3881971,86239.0,86238.0,1.09289]
[1765841104797,0.3776,86239.0,86238.0,1.09289]
[1765841106095,0.3786,86239.0,86238.0,1.09289]
[1765841109297,0.390197,86239.0,86238.0,1.09289]
[1765841110884,0.390197,86239.0,86238.0,1.09281]
[1765841112393,0.3766,86238.0,86237.0,0.01164819]
[1765841112597,0.3881988,86226.0,86225.0,0.36681]
[1765841112896,0.3881988,86226.0,86225.0,0.49547221]
[1765841113486,0.0001988,86226.0,86225.0,0.60983221]
[1765841113694,0.1871288,86226.0,86225.0,0.60983221]
[1765841114497,0.1987276,86226.0,86225.0,0.60983221]
[1765841115602,0.1871288,86226.0,86225.0,0.60983221]
[1765841115898,0.17783472,86235.0,86229.0,0.36681]
[1765841115899,0.2012682,86230.0,86229.0,0.36681]
[1765841116092,0.36750472,86239.0,86238.0,0.36681]
[1765841116289,0.388197,86239.0,86238.0,0.36681]
[1765841116499,0.388197,86239.0,86238.0,0.94429]
[1765841117505,0.389197,86239.0,86238.0,0.94429]
[1765841119404,0.390197,86239.0,86238.0,0.94429]
[1765841121008,0.3786,86239.0,86238.0,0.94429]
[1765841121210,0.002,86239.0,86238.0,0.94429]
[1765841122608,0.00011435,86246.0,86245.0,0.4927662]
[1765841122914,0.39051314,86258.0,86257.0,0.36681]
[1765841123102,0.41856306,86258.0,86257.0,0.36681]
[1765841125407,0.3881949,86255.0,86254.0,1.09277]
[1765841125709,0.3881949,86255.0,86249.0,0.00017399]
[1765841125710,0.3766,86250.0,86249.0,0.00017399]
[1765841126017,0.3766,86250.0,86249.0,0.72609399]
[1765841126714,0.3766,86250.0,86249.0,0.91187399]
[1765841126903,0.3766,86250.0,86249.0,1.09290399]
[1765841127216,0.3786,86250.0,86249.0,1.09290399]
[1765841128104,0.3816,86250.0,86249.0,1.09290399]
[1765841128910,0.3816,86250.0,86249.0,0.72609399]
[1765841129608,0.44975,86250.0,86249.0,0.72609399]
[1765841130410,0.47779973,86250.0,86249.0,0.72609399]
[1765841131518,0.47779973,86250.0,86249.0,0.00017399]
[1765841133018,0.40964973,86250.0,86249.0,0.00017399]
[1765841133322,0.40964973,86250.0,86249.0,0.21875399]
[1765841133712,0.40964973,86250.0,86249.0,0.00017399]
[1765841133913,0.40964973,86250.0,86249.0,9e-08]
[1765841133914,0.47535973,86250.0,86249.0,9e-08]
[1765841134114,0.4611581,86231.0,86230.0,0.56411]
[1765841134319,0.4611581,86231.0,86230.0,0.58843]
[1765841139025,0.4611581,86231.0,86230.0,0.6000282]
[1765841140120,0.44956,86231.0,86230.0,0.6000282]
[1765841140325,0.21725399,86239.0,86238.0,0.4613472]
[1765841140526,0.00017399,86239.0,86238.0,0.4613472]
[1765841141414,0.00117399,86239.0,86238.0,0.4613472]
[1765841141928,0.00217399,86239.0,86238.0,0.4613472]
[1765841158237,0.21925399,86239.0,86238.0,0.4613472]
[1765841158440,0.45173399,86239.0,86238.0,0.4613472]
[1765841158742,0.45173399,86239.0,86238.0,0.44975]
[1765841167239,0.46333099,86239.0,86238.0,0.44975]
[1765841168538,0.4287878,86233.0,86232.0,0.21104]
[1765841168744,0.4287878,86233.0,86232.0,0.77568]
[1765841168932,0.4287878,86233.0,86232.0,0.93684]
[1765841169132,0.4287878,86233.0,86232.0,1.14681]
[1765841170042,0.4287878,86233.0,86232.0,1.27241]
[1765841171047,0.41719,86233.0,86232.0,1.27241]
[1765841171945,0.4287878,86233.0,86232.0,1.27241]
[1765841173850,0.4287878,86233.0,86232.0,0.54661]
[1765841174153,0.4287878,86233.0,86232.0,1.27241]
[1765841174354,0.4287878,86233.0,86232.0,0.54661]
[1765841175050,0.4287878,86233.0,86232.0,1.22445]
[1765841175249,0.4287878,86233.0,86232.0,0.54661]
[1765841175752,0.4287878,86233.0,86232.0,1.21953]
[1765841175953,0.4287878,86233.0,86232.0,1.231128]
[1765841176348,0.4287878,86233.0,86232.0,1.21953]
[1765841176756,0.4287878,86233.0,86232.0,0.54661]
[1765841176950,0.4287878,86233.0,86232.0,1.22445]
[1765841177156,0.4287878,86233.0,86232.0,1.27241]
[1765841178346,0.4287878,86233.0,86230.0,0.11436]
[1765841178347,0.0115978,86233.0,86225.0,0.56101221]
[1765841178547,0.4287888,86226.0,86225.0,0.56101221]
[1765841178745,0.4287888,86226.0,86225.0,1.20841221]
[1765841179748,0.4287888,86226.0,86225.0,0.43279221]
[1765841179951,0.4297888,86226.0,86225.0,1.15859221]
[1765841180553,0.4297888,86226.0,86225.0,1.14681]
[1765841180755,0.4307888,86226.0,86225.0,1.14681]
[1765841181152,0.4307888,86226.0,86225.0,0.93684]
[1765841181352,0.4297888,86226.0,86225.0,0.93684]
[1765841181553,0.4307888,86226.0,86225.0,0.93684]
[1765841182849,0.4287892,86223.0,86222.0,0.00017399]
[1765841185655,0.4297892,86223.0,86222.0,0.00017399]
[1765841188665,0.4287903,86215.0,86214.0,0.00010709]
[1765841189960,0.4287903,86215.0,86214.0,0.00110709]
[1765841190362,0.4287903,86215.0,86214.0,0.01300415]
[1765841190763,0.4287903,86215.0,86214.0,0.22404415]
[1765841191154,0.4287903,86215.0,86214.0,0.43401415]
[1765841197771,0.4287903,86215.0,86214.0,0.42211709]
[1765841198667,0.4287903,86215.0,86214.0,0.4340107]
[1765841199157,0.4287903,86215.0,86214.0,0.00110709]
[1765841202066,0.4180913,86207.0,86206.0,0.00017399]
[1765841202771,0.4180913,86207.0,86206.0,0.40350399]
[1765841203158,0.41819393,86207.0,86206.0,0.41713932]
[1765841203766,0.41819393,86207.0,86206.0,0.41813932]
[1765841205974,0.41819393,86207.0,86206.0,0.01480932]
[1765841206159,0.41819393,86207.0,86206.0,0.41813932]
[1765841206365,0.41819393,86207.0,86206.0,0.21443932]
[1765841206564,0.41819393,86207.0,86206.0,0.41813932]
[1765841213064,0.00010263,86207.0,86206.0,0.41813932]
[1765841213777,0.20067263,86207.0,86206.0,0.41813932]
[1765841215373,0.40659263,86207.0,86206.0,0.41813932]
[1765841216175,0.20067263,86207.0,86206.0,0.42974082]
[1765841217390,0.40659263,86207.0,86206.0,0.42974082]
[1765841217583,0.40659263,86207.0,86206.0,0.41813932]
[1765841222275,0.00010263,86207.0,86206.0,0.41813932]
[1765841222484,2.63e-06,86207.0,86206.0,0.50081143]
[1765841222686,0.00017399,86215.0,86214.0,0.4137104]
[1765841222990,0.00017399,86215.0,86214.0,1.1396304]
[1765841224287,0.24313492,86228.0,86227.0,0.40211]
[1765841224480,0.05775492,86228.0,86227.0,0.40211]
[1765841224782,0.05775492,86228.0,86227.0,1.12803]
[1765841224981,0.24313492,86228.0,86227.0,1.12803]
[1765841225383,0.24313492,86228.0,86227.0,1.1396286]
[1765841225975,0.23153632,86228.0,86227.0,1.1396286]
[1765841226181,0.37468399,86236.0,86235.0,0.51642]
[1765841226388,0.38628139,86236.0,86235.0,0.51642]
[1765841226590,0.01177139,86236.0,86235.0,0.51642]
[1765841227089,0.19715139,86236.0,86235.0,0.51642]
[1765841227281,0.18655399,86236.0,86235.0,0.51642]
[1765841228478,0.00217399,86236.0,86235.0,0.51642]
[1765841228684,0.00117399,86236.0,86235.0,0.51642]
[1765841228989,0.00017399,86236.0,86235.0,0.51642]
[1765841230096,0.37471038,86250.0,86249.0,0.40211]
[1765841230283,0.3861055,86250.0,86249.0,0.40211]
[1765841231994,0.3881055,86250.0,86249.0,0.40211]
[1765841233189,0.3871055,86250.0,86249.0,0.40211]
[1765841233382,0.3881055,86250.0,86249.0,0.40211]
[1765841236385,0.0135955,86250.0,86249.0,0.40211]
[1765841236591,0.1989755,86250.0,86249.0,0.40211]
[1765841236790,0.3881055,86250.0,86249.0,0.40211]
[1765841239794,0.0135955,86250.0,86249.0,0.40211]
[1765841239998,0.002,86250.0,86249.0,0.40211]
[1765841241194,0.001,86250.0,86249.0,0.40211]
[1765841241394,0.18538,86256.0,86255.0,0.51642]
[1765841241596,0.18769864,86258.0,86257.0,0.40211]
[1765841242101,0.37682864,86258.0,86257.0,0.40211]
[1765841242306,0.37682864,86258.0,86257.0,0.41406833]
[1765841243705,0.37782864,86258.0,86257.0,0.41406833]
[1765841244006,0.37882864,86258.0,86257.0,0.41406833]
[1765841254210,0.37882864,86258.0,86257.0,1.13954833]
[1765841255003,0.37882864,86258.0,86257.0,1.12759]
[1765841255798,0.37882864,86258.0,86257.0,1.13931261]
[1765841263805,0.37882864,86258.0,86257.0,1.13929738]
[1765841264013,0.37882864,86258.0,86257.0,1.12759]
[1765841264204,0.37882864,86258.0,86257.0,1.13935009]
[1765841264701,0.40625235,86258.0,86257.0,1.12759]
[1765841264901,0.40625235,86258.0,86247.0,0.10913399]
[1765841264902,0.34966,86251.0,86250.0,0.30579]
[1765841265107,0.34966,86251.0,86250.0,0.88249]
[1765841265108,0.38868176,86251.0,86250.0,0.88249]
[1765841267505,0.3612554,86251.0,86250.0,0.88249]
[1765841267713,0.3622554,86251.0,86250.0,0.8941388]
[1765841272221,0.3612554,86251.0,86250.0,0.8941388]
[1765841272416,0.00231864,86258.0,86257.0,0.37746]
[1765841272417,0.36357314,86258.0,86257.0,0.37746]
[1765841274119,0.36457314,86258.0,86257.0,0.37746]
[1765841275322,0.36557314,86258.0,86257.0,0.37746]
[1765841278517,0.39299873,86258.0,86257.0,0.37746]
[1765841280714,0.39299851,86258.0,86257.0,0.37746]
[1765841282623,0.3549654,86251.0,86250.0,0.2962888]
[1765841283012,0.3549658,86248.0,86247.0,0.00017399]
[1765841283618,0.3549658,86248.0,86247.0,0.01175247]
[1765841284027,0.3549658,86248.0,86247.0,0.18208247]
[1765841284425,0.3549658,86248.0,86247.0,0.17050399]
[1765841284730,0.44781495,86248.0,86247.0,0.00017399]
[1765841284916,0.44781495,86248.0,86224.0,0.44522]
[1765841284917,0.3549689,86225.0,86224.0,0.44522]
[1765841285117,0.3539689,86225.0,86224.0,0.45688868]
[1765841286029,0.3539689,86225.0,86224.0,0.44522]
[1765841286229,0.3539689,86225.0,86224.0,0.44822]
[1765841286429,0.3539689,86225.0,86224.0,0.45222]
[1765841286631,0.3539689,86225.0,86224.0,0.004]
[1765841286830,0.3549689,86225.0,86224.0,0.004]
[1765841287218,0.34337,86224.0,86223.0,0.18191085]
[1765841287528,0.34337,86224.0,86223.0,0.35387085]
[1765841288223,0.35497,86217.0,86216.0,0.34246399]
[1765841288415,0.35497,86217.0,86216.0,0.35432959]
[1765841293426,0.17927399,86233.0,86232.0,0.34229]
[1765841293740,0.19087179,86233.0,86232.0,0.34229]
[1765841293920,0.35514179,86233.0,86232.0,0.34229]
[1765841294232,0.34354399,86233.0,86232.0,0.34229]
[1765841294724,0.35514179,86233.0,86232.0,0.34229]
[1765841295334,0.35614179,86233.0,86232.0,0.34229]
[1765841295627,0.35514179,86233.0,86232.0,0.34229]
[1765841296024,0.34554399,86233.0,86232.0,0.34229]
[1765841296722,0.34354399,86233.0,86232.0,0.34229]
[1765841302836,0.34354399,86233.0,86232.0,0.44522]
[1765841306344,0.34337,86221.0,86220.0,0.44522]
[1765841306643,0.3549694,86221.0,86220.0,0.44522]
[1765841307641,0.3549694,86221.0,86220.0,0.44622]
[1765841307842,0.3549694,86221.0,86220.0,0.44722]
[1765841308339,0.3549694,86221.0,86220.0,0.44622]
[1765841309038,0.3549694,86221.0,86220.0,0.44522]
[1765841312442,0.3569694,86221.0,86220.0,0.44522]
[1765841313440,0.3559694,86221.0,86220.0,0.44522]
[1765841313641,0.3569694,86221.0,86220.0,0.44522]
[1765841314244,0.3559694,86221.0,86220.0,0.44522]
[1765841317045,0.1916994,86221.0,86220.0,0.44522]
[1765841317635,0.0125994,86221.0,86220.0,0.44522]
[1765841318534,0.1683394,86221.0,86220.0,0.44522]
[1765841319140,0.1673394,86221.0,86220.0,0.44522]
[1765841321444,0.0115994,86221.0,86220.0,0.44522]
[1765841329550,0.1673392,86223.0,86222.0,0.33316]
[1765841331653,0.3361292,86223.0,86222.0,0.33316]
[1765841332454,0.1673392,86223.0,86222.0,0.33316]
[1765841334055,0.0115992,86223.0,86222.0,0.33316]
[1765841335355,0.49933979,86230.0,86229.0,0.43464]
[1765841335551,0.3332782,86230.0,86229.0,0.43464]
[1765841335751,0.3332782,86230.0,86229.0,0.4462384]
[1765841336663,0.3342782,86230.0,86229.0,0.4462384]
[1765841336958,0.3352782,86230.0,86229.0,0.4462384]
[1765841337552,0.3342782,86230.0,86229.0,0.4462384]
[1765841337854,0.0837553,86252.0,86229.0,0.4462384]
[1765841337855,0.15574,86254.0,86253.0,0.43464]
[1765841338057,0.31982,86254.0,86253.0,1.16012]
[1765841338853,0.31818,86251.0,86250.0,0.26615]
[1765841339053,0.31818,86251.0,86250.0,0.99163]
[1765841339248,0.011595,86255.0,86250.0,0.99163]
[1765841339249,0.00231864,86258.0,86257.0,0.33316]
[1765841339449,0.32049864,86258.0,86257.0,0.33316]
[1765841340454,0.32049864,86258.0,86257.0,0.16467]
[1765841340655,0.32049864,86258.0,86250.0,0.43464]
[1765841340656,0.3288554,86251.0,86250.0,0.43464]
[1765841340862,0.3288558,86248.0,86247.0,0.10148]
[1765841341063,0.31635,86246.0,86245.0,0.00017399]
[1765841341453,0.31635,86237.0,86236.0,0.10148]
[1765841341655,0.3279484,86229.0,86228.0,0.43464]
[1765841341857,0.3279484,86229.0,86228.0,0.26615]
[1765841342162,0.3279484,86229.0,86228.0,0.10148]
[1765841342361,0.3279484,86229.0,86228.0,0.40215]
[1765841342657,0.3269484,86229.0,86228.0,0.40215]
[1765841343462,0.3279484,86229.0,86228.0,0.40215]
[1765841344760,0.3289484,86229.0,86228.0,0.40215]
[1765841348564,0.3187094,86221.0,86220.0,0.40232399]
[1765841348960,0.3187094,86221.0,86220.0,0.25355399]
[1765841349164,0.3187094,86221.0,86220.0,0.40232399]
[1765841353662,0.0115994,86221.0,86220.0,0.40232399]
[1765841353967,0.47597979,86230.0,86229.0,0.30067]
[1765841354168,0.29832,86230.0,86229.0,0.30067]
[1765841355066,0.3099182,86230.0,86229.0,0.30067]
[1765841355267,0.3109182,86230.0,86229.0,0.30067]
[1765841355468,0.3119182,86230.0,86229.0,0.30067]
[1765841357064,0.0135982,86230.0,86229.0,0.3122684]
[1765841357461,0.0125982,86230.0,86229.0,0.30067]
[1765841357660,0.1591382,86230.0,86229.0,0.30067]
[1765841357860,0.3066882,86230.0,86229.0,0.30067]
[1765841358160,0.3056882,86230.0,86229.0,0.30067]
[1765841358468,0.3046882,86230.0,86229.0,0.30067]
[1765841359057,0.0115982,86230.0,86229.0,0.30067]
[1765841359456,0.1564082,86230.0,86229.0,0.30067]
[1765841359976,0.3012282,86230.0,86229.0,0.30067]
[1765841361477,0.1564082,86230.0,86229.0,0.30067]
[1765841365574,0.0115982,86230.0,86229.0,0.30067]
[1765841367076,0.1474982,86230.0,86229.0,0.30067]
[1765841370072,0.2790782,86230.0,86229.0,0.30067]
[1765841377688,0.00017399,86237.0,86236.0,0.37355]
[1765841377979,0.00017399,86237.0,86235.0,0.0115975]
[1765841377980,0.0115966,86243.0,86241.0,0.0115968]
[1765841378180,0.2450666,86243.0,86242.0,0.28921]
[1765841380084,0.23347,86243.0,86242.0,0.28921]
[1765841382580,0.41235539,86250.0,86249.0,0.28921]
[1765841382781,0.30080539,86250.0,86249.0,0.28921]
[1765841382983,0.41235539,86250.0,86249.0,0.28921]
[1765841383386,0.2231,86250.0,86249.0,0.28921]
[1765841384279,0.2231,86250.0,86247.0,0.0115959]
[1765841384280,0.2308452,86253.0,86252.0,0.28921]
[1765841384475,0.21925,86253.0,86252.0,0.28921]
[1765841385883,0.22025,86253.0,86252.0,0.28921]
[1765841386083,0.22125,86253.0,86252.0,0.28921]
[1765841388684,0.22125,86253.0,86252.0,0.3008053]
[1765841390897,0.22125,86253.0,86252.0,0.3851453]
[1765841394197,0.11226,86253.0,86252.0,0.3851453]
[1765841394499,0.002,86253.0,86252.0,0.3851453]
[1765841394699,0.09868,86253.0,86252.0,0.3851453]
[1765841395395,0.19417,86253.0,86252.0,0.3851453]
[1765841397500,0.002,86253.0,86252.0,0.3851453]
[1765841402086,0.08898,86253.0,86252.0,0.3851453]
[1765841402291,0.002,86253.0,86252.0,0.3851453]
[1765841403895,0.08898,86253.0,86252.0,0.37355]
[1765841404094,0.17371,86253.0,86252.0,0.37355]
[1765841404296,0.002,86253.0,86252.0,0.37355]
[1765841404701,0.08673,86253.0,86252.0,0.37355]
[1765841404897,0.17146,86253.0,86252.0,0.37355]
[1765841405199,0.17146,86253.0,86252.0,0.08434]
[1765841405401,0.16724,86251.0,86250.0,0.08434]
[1765841406000,0.16724,86251.0,86250.0,0.22195]
[1765841406502,0.16824,86251.0,86250.0,0.35984]
[1765841408205,0.16924,86251.0,86250.0,0.35984]
[1765841408803,0.16064,86246.0,86245.0,0.08434]
[1765841409003,0.16064,86246.0,86240.0,0.08434]
[1765841409004,0.1711568,86241.0,86240.0,0.22195]
[1765841409202,0.1711568,86241.0,86234.0,0.00017399]
[1765841409203,0.15848,86235.0,86234.0,0.00017399]
[1765841410098,0.15848,86235.0,86234.0,0.13778399]
[1765841410298,0.15848,86235.0,86234.0,0.27567399]
[1765841411303,0.15848,86235.0,86234.0,0.27667399]
[1765841411703,0.15848,86235.0,86234.0,0.27767399]
[1765841412207,0.15848,86235.0,86234.0,0.27667399]
[1765841412394,0.15848,86235.0,86234.0,0.27567399]
[1765841415112,0.16148,86235.0,86234.0,0.27567399]
[1765841415496,0.16048,86235.0,86234.0,0.27567399]
[1765841415700,0.15948,86235.0,86234.0,0.27567399]
[1765841416000,0.16048,86235.0,86234.0,0.00017399]
[1765841416406,0.16048,86235.0,86234.0,0.13778399]
[1765841416610,0.16048,86235.0,86234.0,0.27567399]
[1765841417509,0.002,86235.0,86234.0,0.27567399]
[1765841418412,0.001,86235.0,86234.0,0.27567399]
[1765841419313,0.0115972,86238.0,86237.0,0.2755]
[1765841422317,0.0764272,86238.0,86237.0,0.2755]
[1765841422618,0.0115972,86238.0,86237.0,0.2755]
[1765841424520,0.17752004,86247.0,86234.0,0.00017399]
[1765841424521,0.31622594,86247.0,86246.0,0.2755]
[1765841424718,0.1387059,86247.0,86246.0,0.2755]
[1765841424916,0.0764259,86247.0,86246.0,0.2755]
[1765841425118,0.0115959,86247.0,86246.0,0.2755]
[1765841425608,0.0125959,86247.0,86246.0,0.2755]
[1765841425811,0.0135959,86247.0,86246.0,0.2755]
[1765841427011,0.002,86247.0,86246.0,0.2755]
[1765841427212,0.0135959,86247.0,86246.0,0.2755]
[1765841427416,0.002,86247.0,86246.0,0.2755]
[1765841427916,0.001,86247.0,86246.0,0.2755]
[1765841428428,0.0115954,86252.0,86251.0,0.2755]
[1765841428818,0.11685864,86258.0,86257.0,0.2755]
[1765841429019,0.12845314,86258.0,86257.0,0.2755]
[1765841431314,0.13245314,86258.0,86257.0,0.2755]
[1765841432226,0.1143354,86251.0,86250.0,0.07753]
[1765841432520,0.1143361,86246.0,86245.0,0.31133]
[1765841436140,0.1153361,86246.0,86245.0,0.31133]
[1765841436640,0.1163361,86246.0,86245.0,0.31133]
[1765841444041,0.1153361,86246.0,86245.0,0.31133]
[1765841444242,0.1163361,86246.0,86245.0,0.31133]
[1765841445539,0.1143361,86246.0,86245.0,0.31133]
[1765841445739,0.1163361,86246.0,86245.0,0.31133]
[1765841453140,0.1163361,86246.0,86245.0,0.07753]
[1765841453344,0.1163361,86246.0,86240.0,0.07753]
[1765841453345,0.0678768,86241.0,86240.0,0.07753]
[1765841453544,0.09417383,86241.0,86240.0,0.07753]
[1765841456047,0.09617383,86241.0,86240.0,0.07753]
[1765841456857,0.09817383,86241.0,86240.0,0.07753]
[1765841457152,0.0718768,86241.0,86240.0,0.07753]
[1765841457357,0.09815471,86241.0,86240.0,0.07753]
[1765841457552,0.09715471,86241.0,86240.0,0.07753]
[1765841457758,0.10015471,86241.0,86240.0,0.07753]
[1765841460362,0.10015471,86241.0,86240.0,0.31133]
[1765841461452,0.09715471,86241.0,86240.0,0.31133]
[1765841461652,0.10015471,86241.0,86240.0,0.31133]
[1765841462067,0.09915471,86241.0,86240.0,0.31133]
[1765841463255,0.09615471,86241.0,86240.0,0.31133]
[1765841463454,0.09815471,86241.0,86240.0,0.31133]
[1765841464354,0.0718768,86241.0,86240.0,0.31133]
[1765841464759,0.09814779,86241.0,86240.0,0.31133]
[1765841466552,0.0718768,86241.0,86240.0,0.31133]
[1765841467763,0.0708768,86241.0,86240.0,0.31133]
[1765841468164,0.0688768,86241.0,86240.0,0.31133]
[1765841468364,0.0698768,86241.0,86240.0,0.31133]
[1765841470256,0.09644104,86241.0,86240.0,0.31133]
[1765841470563,0.09644099,86241.0,86240.0,0.31133]
[1765841471460,0.06830099,86241.0,86240.0,0.31133]
[1765841471665,0.0520468,86241.0,86240.0,0.31133]
[1765841477175,0.07861908,86241.0,86240.0,0.31133]
[1765841479876,0.06830908,86241.0,86240.0,0.31133]
[1765841480174,0.0115961,86246.0,86245.0,0.22384]
[1765841480976,0.0115961,86246.0,86245.0,0.2354362]
[1765841481370,0.0125961,86246.0,86245.0,0.2354362]
[1765841481569,0.0115951,86254.0,86253.0,0.22384]
[1765841481970,0.023188,86262.0,86257.0,0.22384]
[1765841481971,0.01391314,86258.0,86257.0,0.22384]
[1765841482366,0.01391314,86258.0,86257.0,0.2354346]
[1765841483070,0.01791314,86258.0,86257.0,0.2354346]
[1765841483271,0.01791314,86258.0,86257.0,0.22384]
[1765841484274,0.0115917,86279.0,86278.0,0.22384]
[1765841484880,0.1973517,86279.0,86278.0,0.22384]
[1765841485071,0.1973517,86279.0,86278.0,0.23525085]
[1765841485270,0.1973517,86279.0,86278.0,0.22384]
[1765841485473,0.0115917,86279.0,86278.0,0.22384]
[1765841485777,0.1118917,86279.0,86278.0,0.22384]
[1765841485976,0.0165917,86279.0,86278.0,0.22384]
[1765841486165,0.0205917,86279.0,86278.0,0.22384]
[1765841486370,0.0205917,86279.0,86278.0,0.23544124]
[1765841487677,0.0185917,86279.0,86278.0,0.23544124]
[1765841488473,0.0165917,86279.0,86278.0,0.23544124]
[1765841517296,0.0165917,86279.0,86278.0,0.24703304]
[1765841520502,0.005,86279.0,86278.0,0.24703304]
[1765841520700,0.0165916,86279.0,86278.0,0.24703304]
[1765841527716,0.308245,86288.0,86287.0,0.19539]
[1765841527912,0.15707912,86288.0,86287.0,0.19539]
[1765841529010,0.16307912,86288.0,86287.0,0.19539]
[1765841534114,0.12656,86284.0,86283.0,0.05892]
[1765841534316,0.20064,86271.0,86270.0,0.27862758]
[1765841534612,0.03354,86286.0,86270.0,0.27862758]
[1765841534613,0.2927965,86280.0,86279.0,0.19539]
[1765841534810,0.1153815,86280.0,86279.0,0.19539]
[1765841535010,0.0115915,86280.0,86279.0,0.2069816]
[1765841535212,0.0115915,86280.0,86279.0,0.19539]
[1765841535419,0.2122315,86280.0,86279.0,0.19539]
[1765841535820,0.2122315,86280.0,86279.0,0.2069816]
[1765841536512,0.1153815,86280.0,86279.0,0.2069816]
[1765841537717,0.2122315,86280.0,86279.0,0.19539]
[1765841540517,0.1153815,86280.0,86279.0,0.2069816]
[1765841540717,0.0115915,86280.0,86279.0,0.2069816]
[1765841541823,0.1153815,86280.0,86279.0,0.2069816]
[1765841542412,0.0115915,86280.0,86279.0,0.2069816]
[1765841543329,0.0115915,86280.0,86279.0,0.19539]
[1765841544215,0.1153815,86280.0,86279.0,0.19539]
[1765841544628,0.2122315,86280.0,86279.0,0.19539]
[1765841550131,0.0115915,86280.0,86279.0,0.19539]
[1765841554135,0.22294065,86289.0,86288.0,0.19388]
[1765841554434,0.07176909,86289.0,86288.0,0.19388]
[1765841554824,0.02624344,86289.0,86288.0,0.19388]
[1765841555026,0.00231756,86298.0,86287.0,0.0115905]
[1765841555027,0.0115893,86297.0,86296.0,0.2085092]
[1765841555333,0.00231756,86298.0,86297.0,0.19692]
[1765841555522,0.0115885,86303.0,86302.0,0.2085086]
[1765841555723,0.177415,86306.0,86305.0,0.19692]
[1765841555920,0.011588,86306.0,86305.0,0.19692]
[1765841556632,0.1148676,86310.0,86309.0,0.2085073]
[1765841556833,0.0115872,86313.0,86312.0,0.2659172]
[1765841557039,0.376255,86322.0,86321.0,0.19692]
[1765841557234,0.19884,86322.0,86321.0,0.19692]
[1765841560635,0.0115859,86323.0,86322.0,0.19692]
[1765841561135,0.177415,86332.0,86329.0,0.19692]
[1765841561136,0.19884,86330.0,86329.0,0.19692]
[1765841561442,0.2104248,86330.0,86329.0,0.19692]
[1765841561831,0.2104248,86330.0,86329.0,0.20868929]
[1765841562741,0.0115846,86332.0,86330.0,0.0115848]
[1765841562942,0.0115846,86332.0,86331.0,0.19692]
[1765841563632,0.1148646,86332.0,86331.0,0.19692]
[1765841565942,0.0115846,86332.0,86331.0,0.19692]
[1765841566357,0.2104246,86332.0,86331.0,0.19692]
[1765841569840,0.2104246,86332.0,86331.0,0.2085047]
[1765841570642,0.0115846,86332.0,86331.0,0.2085047]
[1765841571235,0.1148646,86332.0,86331.0,0.2085047]
[1765841571432,0.0115846,86332.0,86331.0,0.2085047]
[1765841571947,0.1888077,86341.0,86337.0,0.2085039]
[1765841572848,0.0115836,86339.0,86337.0,0.2085039]
[1765841577249,0.10559649,86338.0,86337.0,0.2085039]
[1765841577953,0.00231649,86338.0,86337.0,0.2085039]
[1765841580848,0.00231649,86338.0,86337.0,0.19692]
[1765841581755,0.1772243,86350.0,86349.0,0.2085023]
[1765841581957,0.2104213,86356.0,86355.0,0.2085014]
[1765841582156,0.1148613,86356.0,86355.0,0.2085014]
[1765841582351,0.2099202,86361.0,86360.0,0.24367]
[1765841582655,0.2099202,86361.0,86360.0,0.2552508]
[1765841582954,0.2099202,86361.0,86360.0,0.24367]
[1765841585352,0.1076496,86361.0,86360.0,0.24367]
[1765841585655,0.0097696,86361.0,86360.0,0.24367]
[1765841585852,0.0115795,86370.0,86369.0,0.1991396]
[1765841586549,0.20246382,86378.0,86377.0,0.1991385]
[1765841586852,0.20246382,86378.0,86375.0,0.05611]
[1765841586853,0.18857,86376.0,86375.0,0.09549]
[1765841587048,0.18857,86376.0,86375.0,0.24367]
[1765841587458,0.18857,86371.0,86370.0,0.24367]
[1765841587656,0.2001493,86371.0,86370.0,0.24367]
[1765841590955,0.0115793,86371.0,86370.0,0.24367]
[1765841591456,0.2001493,86371.0,86370.0,0.24367]
[1765841591652,0.1094593,86371.0,86370.0,0.24367]
[1765841592059,0.2001493,86371.0,86370.0,0.24367]
[1765841594058,0.00231542,86378.0,86377.0,0.18756]
[1765841599270,0.01389382,86378.0,86377.0,0.21084257]
[1765841599767,0.00231542,86378.0,86377.0,0.21084257]
[1765841600869,0.01389382,86378.0,86377.0,0.21084257]
[1765841601870,0.00231542,86378.0,86377.0,0.21084257]
[1765841603372,0.01389382,86378.0,86377.0,0.21084257]
[1765841603673,0.00231542,86378.0,86377.0,0.21084257]
[1765841604073,0.00231542,86378.0,86377.0,0.19926407]
[1765841604074,0.19088542,86378.0,86377.0,0.19926407]
[1765841608579,0.19088542,86378.0,86366.0,0.59352]
[1765841608580,0.18857,86366.0,86365.0,0.24367]
[1765841608769,0.18857,86362.0,86360.0,0.05611]
[1765841609078,0.28652861,86371.0,86370.0,0.24367]
[1765841609382,0.2001493,86371.0,86370.0,0.24367]
[1765841637186,0.2001493,86371.0,86370.0,0.30562693]